fUSD/lending_fUSD_20250402
["ID","MTS","AMOUNT","RATE_DAILY","PERIOD"]
[357000796,1743559832805,-2041.0,0.00027659,2]
[357000797,1743559832815,-1365.0,0.00027659,2]
[357000798,1743559832824,-573.0,0.00027659,2]
[357000800,1743559832834,-789.0,0.00027659,2]
[357000801,1743559832843,-1275.0,0.00027659,2]
[357000803,1743559832853,-909.0,0.00027659,2]
[357000806,1743559832863,-4094.0,0.00027659,2]
[357000807,1743559832874,-1434.0,0.00027659,2]
[357000809,1743559832883,-543.0,0.00027659,2]
[357000811,1743559832892,-1118.0,0.00027659,2]
[357000813,1743559832902,-150.0,0.00028459,2]
[357000815,1743559832911,-311.0,0.000286,2]
[357000817,1743559832921,-300.0,0.00029,2]
[357000819,1743559832930,-151.0,0.0002967,2]
[357000821,1743559832940,-3399.3493959,0.0002967,2]
[357000824,1743559832952,-550.6506041,0.0002967,2]
[357000826,1743559832961,-5286.3300118,0.000297,3]
[357000828,1743559832976,-267.6699882,0.000297,3]
[357000830,1743559832986,-482.32,0.00029953,2]
[357000832,1743559832996,-301.20099379,0.0003,2]
[357000834,1743559833005,-643.0,0.00030659,2]
[357000836,1743559833015,-1284.0,0.00030659,2]
[357000838,1743559833025,-2041.0,0.00030659,2]
[357000841,1743559833035,-965.40380821,0.00030659,2]
[357000844,1743559833047,-399.59619179,0.00030659,2]
[357000847,1743559833057,-573.0,0.00030659,2]
[357000851,1743559833066,-789.0,0.00030659,2]
[357000854,1743559833076,-1275.0,0.00030659,2]
[357000857,1743559833087,-909.0,0.00030659,2]
[357000860,1743559833096,-1886.10180821,0.00030659,2]
[357000864,1743559833108,-797.78729246,0.00030659,2]
[357000871,1743559833143,-467.21,0.0002967,2]
[357000918,1743559838272,-81.902,0.0002967,2]
[357000919,1743559838282,-1410.11089933,0.00030659,2]
[357000920,1743559838292,-1434.0,0.00030659,2]
[357000921,1743559838302,-543.0,0.00030659,2]
[357000922,1743559838312,-5554.0,0.000308,5]
[357000923,1743559838321,-200.0,0.00030858,2]
[357000924,1743559838332,-350.0,0.00031,2]
[357000925,1743559838345,-535.293,0.000317,30]
[357000926,1743559838355,-197.50119285,0.000317,30]
[357000927,1743559838365,-250.0,0.0003182,2]
[357000928,1743559838375,-150.66,0.00031847,2]
[357000929,1743559838386,-1000.0,0.00031868,2]
[357000930,1743559838396,-150.0,0.0003191,2]
[357000931,1743559838406,-839.82,0.00031972,2]
[357000932,1743559838415,-500.0,0.00032032,2]
[357000933,1743559838426,-482.32,0.00032217,2]
[357000934,1743559838437,-166.66,0.00032392,2]
[357000935,1743559838447,-169.46,0.00032646,2]
[357000936,1743559838456,-151.0,0.0003267,2]
[357000937,1743559838466,-3950.0,0.0003267,2]
[357000938,1743559838477,-971.28077983,0.000329,2]
[357000939,1743559838487,-400.0,0.00033,2]
[357000940,1743559838496,-200.0,0.00033151,2]
[357000941,1743559838506,-150.66,0.00033216,2]
[357000942,1743559838515,-414.46,0.0003327,2]
[357000943,1743559838524,-166.66,0.00033461,2]
[357000944,1743559838534,-2000.0,0.000335,2]
[357000945,1743559838543,-839.82,0.00033571,2]
[357000946,1743559838554,-1030.6325978,0.00033609,5]
[357000947,1743559838563,-643.0,0.00033659,2]
[357000948,1743559838572,-1284.0,0.00033659,2]
[357000949,1743559838582,-2041.0,0.00033659,2]
[357000950,1743559838592,-1365.0,0.00033659,2]
[357000951,1743559838601,-573.0,0.00033659,2]
[357000952,1743559838611,-500.912,0.00033659,2]
[357000953,1743559838621,-1275.0,0.00033659,2]
[357000954,1743559838631,-909.0,0.00033659,2]
[357000955,1743559838641,-4094.0,0.00033659,2]
[357000956,1743559838651,-1434.0,0.00033659,2]
[357000957,1743559838660,-543.0,0.00033659,2]
[357000958,1743559838670,-150.0,0.00033967,7]
[357000959,1743559838680,-150.0,0.000343,2]
[357000960,1743559838690,-1500.0,0.000343,3]
[357000961,1743559838700,-482.32,0.0003448,2]
[357000962,1743559838709,-166.66,0.0003453,2]
[357000963,1743559838718,-450.0,0.00035,2]
[357000964,1743559838730,-170.88,0.00035,2]
[357000965,1743559838740,-370.0,0.00035,2]
[357000966,1743559838750,-234.0,0.00035,2]
[357000967,1743559838759,-23900.0,0.00035029,2]
[357000968,1743559838769,-839.82,0.00035169,2]
[357000969,1743559838782,-166.66,0.00035599,2]
[357000970,1743559838792,-150.0,0.00035616,2]
[357000971,1743559838801,-151.0,0.0003567,2]
[357000972,1743559838811,-3950.0,0.0003567,2]
[357000973,1743559838821,-2000.0,0.000362,2]
[357000974,1743559838831,-1000.0,0.00036357,2]
[357000975,1743559838841,-150.0,0.00036554,2]
[357000976,1743559838850,-1271.002,0.00036659,2]
[357000977,1743559838860,-1365.0,0.00036659,2]
[357000978,1743559838870,-426.26783255,0.00036659,2]
[357000979,1743559838882,-26.40116745,0.00036659,2]
[357000980,1743559838892,-328.404,0.00036659,2]
[357000981,1743559838901,-59.31046999,0.00036659,2]
[357000982,1743559838914,-834.85053001,0.00036659,2]
[357000983,1743559838924,-55.44720958,0.00036659,2]
[357000984,1743559838937,-329.35564725,0.00036659,2]
[357000985,1743559838950,-322.18412719,0.00036659,2]
[357000986,1743559838966,-464.79510925,0.00036659,2]
[357000987,1743559838979,-661.77356319,0.00036659,2]
[357000989,1743559840504,-2.69034354,0.00036659,2]
[357000990,1743559840514,-335.67333039,0.00036659,2]
[357000991,1743559840525,-845.06326688,0.00036659,2]
[357000992,1743559840768,-248.32440273,0.00036659,2]
[357000993,1743559840778,-543.0,0.00036659,2]
[357000994,1743559840787,-166.66,0.00036669,2]
[357000995,1743559840797,-482.32,0.00036744,2]
[357000996,1743559840806,-427.03746155,0.00036768,2]
[357000997,1743559840826,-412.78253845,0.00036768,2]
[357000998,1743559840836,-218.98,0.000368,7]
[357000999,1743559840846,-1000.0,0.000369,2]
[357001000,1743559840856,-500.0,0.00036973,5]
[357001001,1743559840866,-5016.91529114,0.00037,2]
[357001002,1743559840987,-1699.98352063,0.00037,2]
[357001013,1743559844773,-1069.59782687,0.0003626,5]
[357001014,1743559844784,-58643.36803648,0.00037,2]
[357001015,1743559844794,-500.0,0.00037,2]
[357001016,1743559844804,-157.53,0.00037,2]
[357001017,1743559844814,-5224.8464791,0.00037,2]
[357001018,1743559844824,-2380.4679384,0.00037,2]
[357001019,1743559844834,-586.7014889,0.00037025,2]
[357001020,1743559844844,-552.0422,0.000371,2]
[357001021,1743559844853,-9813.41493323,0.000372,103]
[357001022,1743559844862,-9813.41493323,0.000372,103]
[357001023,1743559844872,-9813.41493323,0.000372,103]
[357001024,1743559844882,-377.348,0.00037359,2]
[357001025,1743559844891,-150.0,0.00037491,2]
[357001026,1743559844901,-4181.4568059,0.0003759,2]
[357001027,1743559844910,-166.66,0.00037738,2]
[357001028,1743559844920,-167.4777255,0.000378,2]
[357001029,1743559844930,-2187.17837918,0.00038,2]
[357001030,1743559844939,-839.82,0.00038367,2]
[357001031,1743559844949,-150.0,0.00038428,2]
[357001032,1743559844959,-463.3,0.00038443,2]
[357001033,1743559844969,-169.46,0.00038443,2]
[357001034,1743559844979,-151.0,0.0003867,2]
[357001035,1743559844990,-3950.0,0.0003867,2]
[357001036,1743559845000,-173.99,0.0003879,120]
[357001037,1743559845011,-2000.0,0.00039,2]
[357001038,1743559845021,-550.0,0.00039,2]
[357001039,1743559845031,-482.32,0.00039008,2]
[357001040,1743559845040,-1134.0,0.000391,7]
[357001041,1743559845050,-150.0,0.00039366,2]
[357001042,1743559845059,-1365.0,0.00039659,2]
[357001043,1743559845068,-543.0,0.00039659,2]
[357001044,1743559845078,-587.84871072,0.0004,2]
[357001045,1743559845088,-377.67853309,0.0004,2]
[357001047,1743559845098,-211.67627831,0.0004,2]
[357001049,1743559845108,-518.43962426,0.0004,30]
[357001051,1743559845117,-160.0,0.0004,120]
[357001052,1743559845128,-150.0,0.00040303,2]
[357001053,1743559845137,-1000.0,0.00040901,2]
[357001055,1743559845147,-600.0,0.00041,2]
[357001056,1743559845157,-178.0,0.00041,14]
[357001058,1743559845166,-150.26,0.00041096,60]
[357001060,1743559845176,-172.02,0.00041096,2]
[357001061,1743559845186,-150.0,0.0004124,2]
[357001062,1743559845197,-482.32,0.00041272,2]
[357001063,1743559845206,-151.0,0.0004167,2]
[357001065,1743559845216,-235.006,0.0004167,2]
[357001066,1743559845225,-2000.0,0.000417,2]
[357001067,1743559845237,-256.76,0.00042,120]
[357001068,1743559845246,-714.58,0.00042,120]
[357001069,1743559845256,-291.09,0.00042,120]
[357001070,1743559845265,-150.0,0.00042177,2]
[357001071,1743559845275,-973.9282046,0.00042452,10]
[357001074,1743559846352,-26.0717954,0.00042452,10]
[357001075,1743559846364,-152.0,0.00042593,3]
[357001076,1743559846374,-347.4781933,0.00042659,2]
[357001077,1743559846460,-372.6818067,0.00042659,2]
[357001078,1743559846470,-186.3181933,0.00042659,2]
[357001081,1743560635586,179.96,0.00013699,2]
[357001083,1743560728590,236.63832244,0.00011,2]
[357001084,1743560736914,219.61402288,0.00034293,30]
[357001085,1743560737733,2072.18114019,8e-05,2]
[357001086,1743560743527,14126.23508741,0.00034293,120]
[357001087,1743560744228,150.12195243,0.00034293,30]
[357001088,1743560862357,150.12347685,0.00034293,120]
[357001089,1743560877854,6862.71115965,0.00034293,120]
[357001090,1743560915271,155.22862759,0.00034293,120]
[357001091,1743560917964,5072.41982525,0.00034293,60]
[357001092,1743560918512,1559.40443972,0.00034293,120]
[357001093,1743560919417,667.11988389,0.00034293,120]
[357001094,1743560920194,217.16906645,0.0002736,120]
[357001095,1743560925359,310.02076094,0.00034293,120]
[357001113,1743561036158,-186.48154008,0.000149,2]
[357001114,1743561036306,-221.43787509,0.000149,2]
[357001115,1743561036315,-42.11765783,0.000149,2]
[357001126,1743561037556,-132.83627262,0.000149,2]
[357001127,1743561037566,-194.12865597,0.000149,2]
[357001157,1743561043484,-611.5875746,0.000149,2]
[357001158,1743561043495,-666.76785093,0.000149,2]
[357001159,1743561043507,-3642.5676762,0.000149,2]
[357001160,1743561043516,-195.53032607,0.00014999,2]
[357001161,1743561043527,-150.0,0.00014999,2]
[357001162,1743561043537,-677885.96788482,0.00015,2]
[357001171,1743561045746,-35999.9861311,0.00015,2]
[357001172,1743561045758,-30606.10184288,0.00015,2]
[357001182,1743561367371,-300.0,0.00014899,2]
[357001183,1743561367397,-150.0,0.00014899,2]
[357001184,1743561367422,-154.70275511,0.000149,2]
[357001185,1743561367447,-18362.37331333,0.000149,2]
[357001186,1743561367472,-10900.10752614,0.000149,2]
[357001187,1743561367496,-2146.2253,0.000149,2]
[357001188,1743561367521,-3160.7119,0.000149,2]
[357001189,1743561367544,-4095.81479041,0.000149,2]
[357001190,1743561414851,1352.013916,0.00014825,2]
[357001191,1743561427648,548.113389,7.945e-05,2]
[357001192,1743561591441,609.13010778,0.000148,2]
[357001200,1743561651920,196.4,0.00013699,2]
[357001208,1743561726439,500.0,0.00034289,30]
[357001209,1743561727075,518.5,0.00034289,30]
[357001210,1743561727725,537.6845,0.00034289,30]
[357001211,1743561728372,557.5788265,0.00034289,30]
[357001212,1743561729045,578.20924308,0.00034289,30]
[357001213,1743561729694,599.60298507,0.00034289,30]
[357001214,1743561730319,621.78829552,0.00034289,30]
[357001215,1743561730958,644.79446246,0.00034289,30]
[357001216,1743561731737,668.65185757,0.00034289,30]
[357001217,1743561732389,693.3919763,0.00034289,30]
[357001218,1743561733043,719.04747942,0.00034289,30]
[357001219,1743561733766,745.65223616,0.00034289,30]
[357001220,1743561734415,773.2413689,0.00034289,30]
[357001221,1743561735048,801.85129955,0.00034289,30]
[357001222,1743561735687,831.51979763,0.00034289,30]
[357001223,1743561736460,862.28603014,0.00034289,30]
[357001224,1743561737007,894.19061326,0.00034289,30]
[357001225,1743561737677,927.27566595,0.00034289,30]
[357001226,1743561738419,961.58486559,0.00034289,30]
[357001227,1743561739222,961.58486559,0.00034289,30]
[357001229,1743561790382,387.33504312,0.00014567,2]
[357001232,1743561869246,208.21056498,0.000148,2]
[357001233,1743561875112,208.21056496,0.0001485,2]
[357001234,1743562024575,500.0,0.00034289,30]
[357001235,1743562025118,518.5,0.00034289,30]
[357001236,1743562025785,537.6845,0.00034289,30]
[357001237,1743562026434,557.5788265,0.00034289,30]
[357001238,1743562027086,578.20924308,0.00034289,30]
[357001239,1743562027718,599.60298507,0.00034289,30]
[357001240,1743562028394,621.78829552,0.00034289,30]
[357001241,1743562029021,644.79446246,0.00034289,30]
[357001242,1743562029688,668.65185757,0.00034289,30]
[357001243,1743562030936,693.3919763,0.00034289,30]
[357001244,1743562031787,719.04747942,0.00034289,30]
[357001245,1743562033027,745.65223616,0.00034289,30]
[357001246,1743562033778,773.2413689,0.00034289,30]
[357001247,1743562034450,801.85129955,0.00034289,30]
[357001248,1743562035251,831.51979763,0.00034289,30]
[357001249,1743562035901,831.51979763,0.00034289,30]
[357001250,1743562157281,-300.0,0.00014899,2]
[357001251,1743562157311,-7756.31912187,0.000149,2]
[357001254,1743562157365,-8595.72963816,0.000149,2]
[357001256,1743562172728,208.21056496,0.000148,2]
[357001257,1743562182720,-8928.77061336,0.000149,2]
[357001260,1743562182844,-6630.15401924,0.000149,2]
[357001273,1743562231761,-272.80967872,0.000149,2]
[357001274,1743562231888,-400.0,0.000149,2]
[357001275,1743562231943,-636.10140926,0.000149,2]
[357001276,1743562232103,-1085.9649538,0.000149,2]
[357001382,1743562237652,-2446.27148904,0.000149,2]
[357001383,1743562237664,-3098.6227682,0.000149,2]
[357001384,1743562237675,-362.42920835,0.000149,2]
[357001385,1743562237685,-500.0,0.000149,2]
[357001386,1743562237694,-180.21002707,0.000149,2]
[357001387,1743562237704,-223.9435,0.000149,2]
[357001388,1743562237715,-155.33019691,0.00015,2]
[357001389,1743562237726,-452.64,0.00015,2]
[357001390,1743562237810,-93817.02004423,0.00015,2]
[357001391,1743562237865,-4891.75415988,0.00015,2]
[357001392,1743562237920,-9247.16874785,0.00015,2]
[357001393,1743562237931,-1463.88406368,0.00015,2]
[357001405,1743562239864,-22353.79882893,0.00015,2]
[357001406,1743562239875,-448.67857483,0.00015,2]
[357001407,1743562239917,-2500.0,0.00015,2]
[357001408,1743562239929,-889.375035,0.00015,2]
[357001409,1743562240023,-288.07999384,0.00015,2]
[357001410,1743562240035,-487.89012847,0.00015,2]
[357001411,1743562240079,-27590.93136917,0.00015,2]
[357001412,1743562240090,-516.86075677,0.00015,2]
[357001413,1743562240133,-1414.5329418,0.00015,2]
[357001414,1743562240144,-496.29121978,0.00015,2]
[357001415,1743562240191,-723.21934277,0.00015,2]
[357001416,1743562240367,-26709.11032553,0.00015,2]
[357001417,1743562240401,-3094.86716903,0.00015,2]
[357001433,1743562243729,-136.36404526,0.00015,2]
[357001446,1743562245656,-525.0000125,0.00015,2]
[357001447,1743562245712,-1652.08723172,0.00015,2]
[357001448,1743562245724,-848.11727001,0.00015,2]
[357001449,1743562245765,-1834.98942044,0.00015,2]
[357001450,1743562245777,-464.86501883,0.00015,2]
[357001451,1743562245822,-3675.41195589,0.00015,2]
[357001453,1743562286304,444.49318049,0.00014581,2]
[357001454,1743562323314,-150.0,0.00014877,2]
[357001455,1743562327659,500.0,0.00034289,30]
[357001456,1743562328303,518.5,0.00034289,30]
[357001457,1743562329021,537.6845,0.00034289,30]
[357001458,1743562329652,557.5788265,0.00034289,30]
[357001459,1743562330310,578.20924308,0.00034289,30]
[357001460,1743562331006,599.60298507,0.00034289,30]
[357001461,1743562331641,621.78829552,0.00034289,30]
[357001462,1743562332287,644.79446246,0.00034289,30]
[357001463,1743562332946,668.65185757,0.00034289,30]
[357001464,1743562333585,693.3919763,0.00034289,30]
[357001465,1743562334423,719.04747942,0.00034289,30]
[357001466,1743562335053,745.65223616,0.00034289,30]
[357001467,1743562335713,773.2413689,0.00034289,30]
[357001468,1743562336351,801.85129955,0.00034289,30]
[357001469,1743562336989,831.51979763,0.00034289,30]
[357001470,1743562337642,862.28603014,0.00034289,30]
[357001471,1743562338315,894.19061326,0.00034289,30]
[357001472,1743562339163,927.27566595,0.00034289,30]
[357001473,1743562339824,961.58486559,0.00034289,30]
[357001474,1743562340479,961.58486559,0.00034289,30]
[357001475,1743562409362,269.4018,0.00014802,2]
[357001476,1743562443377,-38.0,0.00014877,2]
[357001477,1743562443403,-112.0,0.00014899,2]
[357001478,1743562502039,-151.33,0.00014899,2]
[357001485,1743562623869,151.0,0.00034288,30]
[357001486,1743562624500,156.587,0.00034288,30]
[357001487,1743562625172,162.380719,0.00034288,30]
[357001488,1743562625856,168.3888056,0.00034288,30]
[357001489,1743562626504,174.61919141,0.00034288,30]
[357001490,1743562627227,181.08010149,0.00034288,30]
[357001491,1743562628007,187.78006525,0.00034288,30]
[357001492,1743562628542,194.72792766,0.00034288,30]
[357001493,1743562629181,201.93286099,0.00034288,30]
[357001494,1743562629987,209.40437684,0.00034288,30]
[357001495,1743562630640,217.15233878,0.00034288,30]
[357001496,1743562631873,225.18697532,0.00034288,30]
[357001497,1743562632544,233.51889341,0.00034288,30]
[357001498,1743562633195,242.15909246,0.00034288,30]
[357001499,1743562633874,251.11897888,0.00034288,30]
[357001500,1743562634628,260.4103811,0.00034288,30]
[357001501,1743562635360,270.0455652,0.00034288,30]
[357001502,1743562635916,280.03725112,0.00034288,30]
[357001503,1743562636591,290.39862941,0.00034288,30]
[357001504,1743562637219,290.39862941,0.00034288,30]
[357001505,1743562639805,982.01785781,0.00034288,30]
[357001507,1743562710736,547.498,0.000147,2]
[357001508,1743562882787,1459.46387501,0.000145,2]
[357001509,1743562924157,151.0,0.00034293,30]
[357001510,1743562924809,156.587,0.00034293,30]
[357001511,1743562925512,162.380719,0.00034293,30]
[357001512,1743562926188,162.380719,0.00034293,30]
[357001517,1743563431914,-300.0,0.00014899,2]
[357001518,1743563431924,-197.22461721,0.000149,2]
[357001519,1743563431933,-788.58741332,0.000149,2]
[357001520,1743563431945,-5583.4433429,0.000149,2]
[357001521,1743563432123,-695.28640874,0.000149,2]
[357001522,1743563432135,-4102.91283412,0.000149,2]
[357001523,1743563432144,-268.3726,0.000149,2]
[357001524,1743563432154,-171.47377329,0.000149,2]
[357001525,1743563432163,-3187.73005046,0.000149,2]
[357001526,1743563432173,-508.98020354,0.00014973,2]
[357001527,1743563432185,-4932.22816018,0.0001499,2]
[357001528,1743563432194,-23195.48412315,0.00015,2]
[357001529,1743563432206,-4170.12715053,0.00015,2]
[357001530,1743563432218,-1537.47542561,0.00015,2]
[357001531,1743563432231,-4193.60662579,0.00015,2]
[357001532,1743563432241,-2609.49592439,0.00015,2]
[357001533,1743563432253,-10402.38722552,0.00015,2]
[357001534,1743563432286,-3122.2533,0.00015,2]
[357001594,1743563437913,-38500.68393885,0.00015,2]
[357001595,1743563437926,-1104.59782165,0.00015,2]
[357001596,1743563440209,-0.00778852,0.00015,2]
[357001600,1743563443017,-103550.48460499,0.00015,2]
[357001601,1743563443029,-967.66722004,0.00015,2]
[357001602,1743563443071,-40024.48493967,0.00015,2]
[357001603,1743563443083,-193947.02320478,0.00015,2]
[357001604,1743563443126,-3186.97166963,0.00015,2]
[357001608,1743563444565,-278594.58404934,0.00015,2]
[357001609,1743563445847,-259.43931699,0.00015,2]
[357001610,1743563445859,-24492.33382938,0.00015,2]
[357001611,1743563445902,-12008.49465116,0.00015,2]
[357001612,1743563445913,-31829.34977491,0.00015,2]
[357001613,1743563446007,-4479.12950274,0.00015,2]
[357001614,1743563742627,500.0,0.00032,120]
[357001615,1743563753171,500.0,0.00032,120]
[357001616,1743563820174,164.05,0.00013699,2]
[357001618,1743563910707,518.0,0.000147,2]
[357001621,1743563975729,500.0,0.00032,120]
[357001622,1743563980921,529.91,0.00032,120]
[357001623,1743564002615,500.0,0.00034313,120]
[357001624,1743564012467,500.0,0.00034313,120]
[357001626,1743564069124,150.0,0.00014825,2]
[357001628,1743564328699,2572.86315095,0.00011,2]
[357001642,1743564619674,176.54,0.00013812,2]
[357001647,1743564632034,-640.28534484,0.000149,2]
[357001649,1743564632043,-174.91511925,0.000149,2]
[357001651,1743564632054,-159.3932,0.000149,2]
[357001653,1743564632064,-3123.9028,0.000149,2]
[357001654,1743564632073,-16239.9592,0.000149,2]
[357001655,1743564632083,-180.60178239,0.000149,2]
[357001656,1743564632093,-11814.90639488,0.000149,2]
[357001657,1743564632103,-174.95393045,0.000149,2]
[357001658,1743564632251,-457.82175886,0.00014973,2]
[357001659,1743564632260,-501.39652048,0.00014973,2]
[357001660,1743564632270,-500.0,0.00014973,2]
[357001661,1743564632280,-11579.64298812,0.00014999,2]
[357001662,1743564632289,-413.50275987,0.00014999,2]
[357001663,1743564632298,-30466.81778388,0.00015,2]
[357001664,1743564632310,-503.48436925,0.00015,2]
[357001665,1743564632320,-6043.67082095,0.00015,2]
[357001666,1743564632370,-418.06078853,0.00015,2]
[357001711,1743564633091,319.389429,0.00014825,2]
[357002186,1743564637980,-4647.14943442,0.00015,2]
[357002189,1743564637993,-10233.470495,0.00015,2]
[357002192,1743564638004,-53540.14073889,0.00015,2]
[357002197,1743564638038,-830.49,0.00015,2]
[357002209,1743564638207,-1834.63149159,0.00015,2]
[357002210,1743564638218,-203119.93110754,0.00015,2]
[357002211,1743564638264,-2565.80283854,0.00015,2]
[357002212,1743564638275,-427.85219914,0.00015,2]
[357002223,1743564640279,-4659503.78213592,0.00015,2]
[357002229,1743564643107,-807.82903432,0.00015,2]
[357002230,1743564643119,-32101.27775541,0.00015,2]
[357002251,1743564644605,-52124.71178704,0.00015,2]
[357002252,1743564646191,-415.5,0.00015,2]
[357002255,1743564647921,-14898.14852256,0.00015,2]
[357002256,1743564647931,-92678.29168734,0.00015,2]
[357002257,1743564648050,-626256.11483396,0.00015,2]
[357002258,1743564661666,4022.40320872,0.0001485,2]
[357002261,1743565150635,435.4312853,0.00014759,2]
[357002262,1743565486088,164.05,0.00013699,2]
[357002263,1743565665649,435.4312853,0.0001456,2]
[357002264,1743565667423,176.54,0.00013733,2]
[357002265,1743565687863,150.0,0.00034304,120]
[357002267,1743565790817,-174.91511922,0.000149,2]
[357002269,1743565790850,-1000.0,0.000149,2]
[357002270,1743565790885,-171.47377329,0.000149,2]
[357002272,1743565790913,-2051.67957418,0.000149,2]
[357002273,1743565807747,163.713764,7.945e-05,2]
[357002274,1743565808227,868.600921,0.00014825,2]
[357002278,1743565832368,-73.4737928,0.000149,2]
[357002279,1743565832378,-1217.83245833,0.000149,2]
[357002280,1743565832387,-150.0,0.00014905,2]
[357002281,1743565832397,-213.93031327,0.0001491,2]
[357002282,1743565832418,-365.29098221,0.0001491,2]
[357002283,1743565832476,-420.77870452,0.0001491,2]
[357002284,1743565832485,-191.91857356,0.00014973,2]
[357002285,1743565832494,-779.0,0.00015,2]
[357002286,1743565832503,-4972.61721831,0.00015,2]
[357002287,1743565832632,-417.1601092,0.00015,2]
[357002837,1743565838199,-28414.71931133,0.000149,2]
[357002841,1743565838209,-695.0,0.00015,2]
[357002845,1743565838219,-24901.02497585,0.00015,2]
[357002849,1743565838232,-3220.5576868,0.00015,2]
[357002852,1743565838245,-18487.43183376,0.00015,2]
[357002855,1743565838256,-27632.93180847,0.00015,2]
[357002860,1743565838276,-257.20000004,0.00015,2]
[357002864,1743565838309,-588.44265197,0.00015,2]
[357002871,1743565838370,-178675.16756676,0.00015,2]
[357002873,1743565838381,-419.229999,0.00015,2]
[357002878,1743565838428,-2432.2426155,0.00015,2]
[357002880,1743565838442,-4280.44806219,0.00015,2]
[357002889,1743565838536,-5799.06923783,0.00015,2]
[357002892,1743565840476,-494.67903867,0.00015,2]
[357002893,1743565840488,-1995495.9885582,0.00015,2]
[357002894,1743565840498,-2664007.79357772,0.00015,2]
[357002895,1743565840510,-435.38038272,0.00015,2]
[357002896,1743565840537,-180.21002706,0.000149,2]
[357002897,1743565840547,-1140.31344023,0.00015,2]
[357002898,1743565840639,-492.2061723,0.00015,2]
[357002899,1743565840651,-2553.551,0.00015,2]
[357002900,1743565840798,-2976.20822404,0.00015,2]
[357002901,1743565840809,-3583.06796825,0.00015,2]
[357002907,1743565845194,-639.74197778,0.000149,2]
[357002908,1743565845206,-360.25802222,0.000149,2]
[357002909,1743565845215,-79.58737751,0.00015,2]
[357002915,1743565846320,-553.41262249,0.00015,2]
[357002916,1743565846330,-29710.50332851,0.00015,2]
[357002917,1743565846426,-5403.15079553,0.00015,2]
[357002918,1743565846480,-829.05713372,0.00015,2]
[357002919,1743565846492,-784.9815,0.00015,2]
[357002920,1743565846503,-1414.157248,0.00015,2]
[357002921,1743565846514,-545.152395,0.00015,2]
[357002922,1743565846527,-809.8897063,0.00015,2]
[357002923,1743565846539,-472.95900005,0.00015,2]
[357002924,1743565846550,-778.804,0.00015,2]
[357003000,1743565901173,744.71,0.00014265,2]
[357003001,1743566035559,200.89364433,0.000148,2]
[357003002,1743566041485,200.89364432,0.00014837,2]
[357003003,1743566047493,200.89364432,0.00014873,2]
[357003004,1743566162492,-150.0,0.00014899,2]
[357003005,1743566164766,226.0,0.0003,120]
[357003006,1743566167644,435.4312853,0.00014568,2]
[357003007,1743566208136,150.0,0.000148,2]
[357003008,1743566222116,-195.0,0.00014899,2]
[357003009,1743566310746,504.998,0.000147,2]
[357003012,1743566474014,-231.003,0.00014899,2]
[357003013,1743566485459,426.003,0.000148,2]
[357003014,1743566521369,5694.71706564,0.0001485,2]
[357003015,1743566521392,17971.43128412,0.0001485,2]
[357003016,1743566628481,164.05,0.00013699,2]
[357003018,1743566648377,-178.9493,0.00014894,2]
[357003019,1743566653543,2574.7705,0.00014853,2]
[357003020,1743566658338,435.4312853,0.00014731,2]
[357003021,1743566688499,23900.0,0.00014512,2]